fUST/lending_fUST_20251207
["ID","MTS","AMOUNT","RATE_DAILY","PERIOD"]
[396546707,1765045242953,989.92403602,8.107e-05,2]
[396546708,1765045242997,989.92403602,8.107e-05,2]
[396546709,1765045243028,413.18617143,8.107e-05,2]
[396546710,1765045243070,989.92403602,8.107e-05,2]
[396546711,1765045243112,989.92403602,8.107e-05,2]
[396546712,1765045243159,989.92403602,8.107e-05,2]
[396546713,1765045243215,989.92403602,8.107e-05,2]
[396546714,1765045243252,989.92403602,8.107e-05,2]
[396546715,1765045243291,989.92403602,8.107e-05,2]
[396546716,1765045243336,989.92403602,8.107e-05,2]
[396546717,1765045243367,417.86453755,8.107e-05,2]
[396546718,1765045243392,82.13546245,8.107e-05,2]
[396546719,1765045243440,989.92403602,8.107e-05,2]
[396546720,1765045243478,989.92403602,8.107e-05,2]
[396546721,1765045243523,989.92403602,8.107e-05,2]
[396546722,1765045243594,989.92403602,8.107e-05,2]
[396546723,1765045243634,989.92403602,8.107e-05,2]
[396546724,1765045243680,989.92403602,8.107e-05,2]
[396546725,1765045243728,989.92403602,8.107e-05,2]
[396546726,1765045243767,989.92403602,8.107e-05,2]
[396546727,1765045243816,989.92403602,8.107e-05,2]
[396546728,1765045243852,989.92403602,8.107e-05,2]
[396546729,1765045243885,18.63417735,8.107e-05,2]
[396546730,1765045243909,971.28985867,8.107e-05,2]
[396546731,1765045243945,989.92403602,8.107e-05,2]
[396546732,1765045243977,989.92403602,8.107e-05,2]
[396546733,1765045244024,989.92403602,8.107e-05,2]
[396546734,1765045244066,989.92403602,8.107e-05,2]
[396546735,1765045244107,989.92403602,8.107e-05,2]
[396546736,1765045244140,989.92403602,8.107e-05,2]
[396546737,1765045244172,989.92403602,8.107e-05,2]
[396546738,1765045244214,989.92403602,8.107e-05,2]
[396546739,1765045244286,989.92403602,8.107e-05,2]
[396546740,1765045244320,119.40381715,8.107e-05,2]
[396546741,1765045244345,870.52021887,8.107e-05,2]
[396546742,1765045244378,989.92403602,8.107e-05,2]
[396546743,1765045244417,989.92403602,8.107e-05,2]
[396546744,1765045244460,989.92403602,8.107e-05,2]
[396546745,1765045244721,989.92403602,8.107e-05,2]
[396546746,1765045244778,989.92403602,8.107e-05,2]
[396546747,1765045244817,989.92403602,8.107e-05,2]
[396546748,1765045244856,989.92403602,8.107e-05,2]
[396546749,1765045244899,989.92403602,8.107e-05,2]
[396546750,1765045245315,-323.89238246,8.109e-05,2]
[396546751,1765045250500,500.0,8.107e-05,2]
[396546752,1765045250563,500.0,8.107e-05,2]
[396546753,1765045250657,500.0,8.107e-05,2]
[396546754,1765045250799,244.6852617,8.107e-05,2]
[396546755,1765045262853,300.0,8.108e-05,2]
[396546756,1765045263425,3109.61905804,8.107e-05,2]
[396546757,1765045263461,3109.61905804,8.107e-05,2]
[396546758,1765045263519,3109.61905804,8.107e-05,2]
[396546759,1765045263556,371.15282588,8.107e-05,2]
[396546760,1765045263582,2738.46623216,8.107e-05,2]
[396546761,1765045263616,3109.61905804,8.107e-05,2]
[396546762,1765045263656,3109.61905804,8.107e-05,2]
[396546763,1765045263703,1042.30565176,8.107e-05,2]
[396546764,1765045263731,2067.31340628,8.107e-05,2]
[396546765,1765045263766,3109.61905804,8.107e-05,2]
[396546766,1765045263807,3109.61905804,8.107e-05,2]
[396546767,1765045263843,1713.45847764,8.107e-05,2]
[396546768,1765045263869,1396.1605804,8.107e-05,2]
[396546769,1765045263912,3109.61905804,8.107e-05,2]
[396546770,1765045263954,3109.61905804,8.107e-05,2]
[396546771,1765045263988,2384.61130352,8.107e-05,2]
[396546772,1765045264017,725.00775452,8.107e-05,2]
[396546773,1765045264055,3109.61905804,8.107e-05,2]
[396546774,1765045264089,3109.61905804,8.107e-05,2]
[396546775,1765045264123,3055.7641294,8.107e-05,2]
[396546776,1765045265576,-53.85492864,8.107e-05,2]
[396546777,1765045265608,-3109.61905804,8.107e-05,2]
[396546778,1765045265640,-563.4429686,8.107e-05,2]
[396546779,1765045266198,-2546.17608944,8.107e-05,2]
[396546780,1765045266232,-1798.03876308,8.107e-05,2]
[396546781,1765045266293,-1311.58029496,8.107e-05,2]
[396546782,1765045266327,-3109.61905804,8.107e-05,2]
[396546783,1765045266389,-3109.61905804,8.107e-05,2]
[396546784,1765045266422,-671.15282588,8.107e-05,2]
[396546785,1765045268936,-2982.15524173,8.026e-05,2]
[396546786,1765045268969,-1597.23328438,8.107e-05,2]
[396546787,1765045269146,-841.23294778,8.107e-05,2]
[396546788,1765045269181,-3109.61905804,8.107e-05,2]
[396546789,1765045270646,150.0,6.66e-05,2]
[396546790,1765045271549,152.85,6.6e-05,2]
[396546791,1765045277845,-152.85,6.8e-05,2]
[396546792,1765045277875,-150.0,6.977e-05,2]
[396546793,1765045277900,-42.53161815,7e-05,2]
[396546794,1765045278803,-110.31838185,7e-05,2]
[396546795,1765045278837,-152.85,7.2e-05,2]
[396546796,1765045278873,-150.0,7.294e-05,2]
[396546797,1765045278906,-152.85,7.4e-05,2]
[396546798,1765045278937,-152.85,7.6e-05,2]
[396546799,1765045278969,-150.0,7.611e-05,2]
[396546800,1765045279000,-152.85,7.8e-05,2]
[396546801,1765045279032,-150.0,7.928e-05,2]
[396546802,1765045279061,-152.85,8e-05,2]
[396546803,1765045279093,-3109.61905804,8.107e-05,2]
[396546804,1765045279669,-3109.61905804,8.107e-05,2]
[396546805,1765045279702,-671.15282588,8.107e-05,2]
[396546806,1765045279905,-2438.46623216,8.107e-05,2]
[396546807,1765045279940,-2013.45847764,8.107e-05,2]
[396546808,1765045280170,-1096.1605804,8.107e-05,2]
[396546809,1765045280200,-3109.61905804,8.107e-05,2]
[396546810,1765045280477,-3109.61905804,8.107e-05,2]
[396546811,1765045280527,-671.15282588,8.107e-05,2]
[396546812,1765045280585,-2438.46623216,8.107e-05,2]
[396546813,1765045280617,-2013.45847764,8.107e-05,2]
[396546814,1765045280787,-1096.1605804,8.107e-05,2]
[396546815,1765045280826,-3109.61905804,8.107e-05,2]
[396546816,1765045280994,-3109.61905804,8.107e-05,2]
[396546817,1765045281026,-671.15282588,8.107e-05,2]
[396546818,1765045284976,-1650.0,8.026e-05,2]
[396546819,1765045289811,3643.73936996,8.026e-05,2]
[396546820,1765045297824,3056.27063004,8.026e-05,2]
[396546821,1765045297848,10000.01,8.026e-05,2]
[396546822,1765045297876,10000.01,8.026e-05,2]
[396546823,1765045297902,4528.74220725,8.026e-05,2]
[396546824,1765045305679,10000.01,8.026e-05,2]
[396546825,1765045324594,-300.0,8.025e-05,2]
[396546826,1765045332558,151.04,6.6e-05,2]
[396546827,1765045333146,-151.04,6.8e-05,2]
[396546828,1765045333418,-151.04,7e-05,2]
[396546829,1765045337306,-151.04,7.2e-05,2]
[396546830,1765045337339,150.0,6.718e-05,2]
[396546831,1765045337695,150.0,7.038e-05,2]
[396546832,1765045337814,-151.04,7.4e-05,2]
[396546833,1765045338094,12.4261529,7.358e-05,2]
[396546834,1765045351673,-137.5738471,7.358e-05,2]
[396546835,1765045352443,-151.04,7.6e-05,2]
[396546836,1765045352467,-56.93703437,7.678e-05,2]
[396546837,1765045366852,-93.06296563,7.678e-05,2]
[396546838,1765045393079,151.04,6.6e-05,2]
[396546839,1765045393404,151.04,6.9e-05,2]
[396546840,1765045393730,151.04,7.1e-05,2]
[396546841,1765045394024,151.04,7.4e-05,2]
[396546842,1765045394305,151.04,7.6e-05,2]
[396546843,1765045394826,151.04,7.8e-05,2]
[396546844,1765045400291,-150.0,7.998e-05,2]
[396546845,1765045406393,150.0,6.66e-05,2]
[396546846,1765045406777,150.0,6.977e-05,2]
[396546847,1765045407163,150.0,7.294e-05,2]
[396546848,1765045407561,150.0,7.612e-05,2]
[396546849,1765045407959,150.0,7.929e-05,2]
[396546850,1765045413928,-305.55076006,8.024e-05,2]
[396546851,1765045416135,-375.26479566,8.024e-05,2]
[396546852,1765045416496,-37.18444428,8.024e-05,2]
[396546853,1765045419935,-193.85391797,8.025e-05,2]
[396546854,1765045419960,-74.0837913,8.025e-05,2]
[396546855,1765045421467,-417.40216267,8.025e-05,2]
[396546856,1765045423611,-8.51404603,8.025e-05,2]
[396546857,1765045423638,-162.90995115,8.025e-05,2]
[396546858,1765045427478,-114.41303829,8.025e-05,2]
[396546859,1765045427503,-36.68696174,8.025e-05,2]
[396546860,1765045429611,-264.43587518,8.025e-05,2]
[396546861,1765045433019,-173.43486946,8.025e-05,2]
[396546862,1765045433550,-149.65200825,8.025e-05,2]
[396546863,1765045433583,-624.20971463,8.025e-05,2]
[396546864,1765045433611,-500.0,8.025e-05,2]
[396546865,1765045433639,-500.0,8.025e-05,2]
[396546866,1765045433666,-500.0,8.025e-05,2]
[396546867,1765045433698,-624.20971463,8.025e-05,2]
[396546868,1765045433731,-624.20971463,8.025e-05,2]
[396546869,1765045433759,-314.36293372,8.025e-05,2]
[396546870,1765045433789,-624.20971463,8.025e-05,2]
[396546871,1765045433820,-454.09268439,8.025e-05,2]
[396546872,1765045434382,-170.11703024,8.025e-05,2]
[396546873,1765045434413,-624.20971463,8.025e-05,2]
[396546874,1765045434445,-624.20971463,8.025e-05,2]
[396546875,1765045434476,-624.20971463,8.025e-05,2]
[396546876,1765045434506,-624.20971463,8.025e-05,2]
[396546877,1765045434537,-624.20971463,8.025e-05,2]
[396546878,1765045434567,-624.20971463,8.025e-05,2]
[396546879,1765045434597,-624.20971463,8.025e-05,2]
[396546880,1765045434628,-296.63022007,8.025e-05,2]
[396546881,1765045434844,-327.57949456,8.025e-05,2]
[396546882,1765045434874,-624.20971463,8.025e-05,2]
[396546883,1765045434905,-624.20971463,8.025e-05,2]
[396546884,1765045434938,-624.20971463,8.025e-05,2]
[396546885,1765045434969,-624.20971463,8.025e-05,2]
[396546886,1765045435001,-624.20971463,8.025e-05,2]
[396546887,1765045435035,-624.20971463,8.025e-05,2]
[396546888,1765045435065,-624.20971463,8.025e-05,2]
[396546889,1765045435218,-624.20971463,8.025e-05,2]
[396546890,1765045435248,-624.20971463,8.025e-05,2]
[396546891,1765045435279,-624.20971463,8.025e-05,2]
[396546892,1765045435314,-624.20971463,8.025e-05,2]
[396546893,1765045435344,-624.20971463,8.025e-05,2]
[396546894,1765045435374,-624.20971463,8.025e-05,2]
[396546895,1765045435404,-624.20971463,8.025e-05,2]
[396546896,1765045435436,-624.20971463,8.025e-05,2]
[396546897,1765045435505,-624.20971463,8.025e-05,2]
[396546898,1765045435536,-624.20971463,8.025e-05,2]
[396546899,1765045435566,-624.20971463,8.025e-05,2]
[396546900,1765045435595,-624.20971463,8.025e-05,2]
[396546901,1765045435624,-624.20971463,8.025e-05,2]
[396546902,1765045435657,-624.20971463,8.025e-05,2]
[396546903,1765045435687,-624.20971463,8.025e-05,2]
[396546904,1765045435717,-624.20971463,8.025e-05,2]
[396546905,1765045435769,-624.20971463,8.025e-05,2]
[396546906,1765045435798,-624.20971463,8.025e-05,2]
[396546907,1765045435826,-624.20971463,8.025e-05,2]
[396546908,1765045435855,-624.20971463,8.025e-05,2]
[396546909,1765045435884,-624.20971463,8.025e-05,2]
[396546910,1765045435914,-624.20971463,8.025e-05,2]
[396546911,1765045435948,-624.20971463,8.025e-05,2]
[396546912,1765045436143,-624.20971463,8.025e-05,2]
[396546913,1765045437017,-247.16595522,8.025e-05,2]
[396546914,1765045440171,-377.04375941,8.025e-05,2]
[396546915,1765045440202,-624.20971463,8.025e-05,2]
[396546916,1765045440233,-624.20971463,8.025e-05,2]
[396546917,1765045440262,-624.20971463,8.025e-05,2]
[396546918,1765045440291,-624.20971463,8.025e-05,2]
[396546919,1765045440322,-624.20971463,8.025e-05,2]
[396546920,1765045440353,-624.20971463,8.025e-05,2]
[396546921,1765045440384,-624.20971463,8.025e-05,2]
[396546922,1765045440780,-624.20971463,8.025e-05,2]
[396546923,1765045440808,-624.20971463,8.025e-05,2]
[396546924,1765045440837,-624.20971463,8.025e-05,2]
[396546925,1765045440866,-624.20971463,8.025e-05,2]
[396546926,1765045440896,-624.20971463,8.025e-05,2]
[396546927,1765045440925,-624.20971463,8.025e-05,2]
[396546928,1765045440955,-624.20971463,8.025e-05,2]
[396546929,1765045441130,-2358.39877431,8.025e-05,2]
[396546930,1765045452031,151.05,6.6e-05,2]
[396546931,1765045452747,-151.05,6.8e-05,2]
[396546932,1765045458972,-151.05,7e-05,2]
[396546933,1765045458996,-151.05,7.2e-05,2]
[396546934,1765045459020,-103.53943787,7.4e-05,2]
[396546935,1765045459229,-47.51056213,7.4e-05,2]
[396546936,1765045459258,-151.05,7.6e-05,2]
[396546937,1765045459286,-151.05,7.8e-05,2]
[396546938,1765045460436,-2494.08207799,7.945e-05,2]
[396546939,1765045460605,-10000.01,7.945e-05,2]
[396546940,1765045460653,-4614.08855946,7.945e-05,2]
[396546941,1765045460681,-771.83288108,7.945e-05,2]
[396546942,1765045461665,-151.05,8e-05,2]
[396546943,1765045461689,-180.18003834,8.025e-05,2]
[396546944,1765045465992,-3554.89084175,7.866e-05,2]
[396546945,1765045471785,150.0,6.66e-05,2]
[396546946,1765045472186,150.0,6.977e-05,2]
[396546947,1765045472599,2590.2283165,7.945e-05,2]
[396546948,1765045472621,6681.01472754,7.945e-05,2]
[396546949,1765045472749,150.0,7.294e-05,2]
[396546950,1765045472792,-415.11669852,8.025e-05,2]
[396546951,1765045473791,150.0,7.612e-05,2]
[396546952,1765045473948,150.0,7.929e-05,2]
[396546953,1765045474294,-396.94592762,8.025e-05,2]
[396546954,1765045478187,-214.45172086,8.025e-05,2]
[396546955,1765045479714,-189.03337398,8.025e-05,2]
[396546956,1765045481440,-170.13759692,8.025e-05,2]
[396546957,1765045483627,-158.2235184,8.025e-05,2]
[396546958,1765045485708,-363.38578412,8.025e-05,2]
[396546959,1765045489543,-322.78191231,8.025e-05,2]
[396546960,1765045491060,-381.36225871,8.025e-05,2]
[396546961,1765045494115,-239.17249684,8.025e-05,2]
[396546963,1765045495522,-264.36760307,8.025e-05,2]
[396546964,1765045497116,-248.62361005,8.025e-05,2]
[396546965,1765045499901,-175.78391034,8.025e-05,2]
[396546966,1765045501934,2868.99527246,7.945e-05,2]
[396546967,1765045501956,10000.01,7.945e-05,2]
[396546968,1765045501981,10000.01,7.945e-05,2]
[396546969,1765045502003,10000.01,7.945e-05,2]
[396546970,1765045502027,2065.23532656,7.945e-05,2]
[396546971,1765045502510,-157.34088455,8.024e-05,2]
[396546972,1765045505113,-142.65911545,8.024e-05,2]
[396546973,1765045505143,-33.35680164,8.025e-05,2]
[396546974,1765045508370,-259.56401228,8.025e-05,2]
[396546975,1765045512217,-312.26497147,8.024e-05,2]
[396546976,1765045514068,-151.21737776,8.024e-05,2]
[396546977,1765045516810,-155.76528857,8.024e-05,2]
[396546978,1765045518050,220.87,6.6e-05,2]
[396546979,1765045518404,220.87,6.8e-05,2]
[396546980,1765045518777,220.87,6.9e-05,2]
[396546981,1765045519139,220.87,7.1e-05,2]
[396546982,1765045519469,220.87,7.2e-05,2]
[396546984,1765045519837,220.87,7.4e-05,2]
[396546985,1765045520124,220.87,7.5e-05,2]
[396546986,1765045521129,220.87,7.7e-05,2]
[396546987,1765045521471,220.87,7.8e-05,2]
[396546988,1765045523852,-220.87,8e-05,2]
[396546989,1765045523876,-116.40672743,8.024e-05,2]
[396546990,1765045524635,580.7523622,7.944e-05,2]
[396546992,1765045527118,-169.61878785,8.024e-05,2]
[396546993,1765045529141,-154.09575476,8.024e-05,2]
[396546994,1765045530713,-140.63109216,8.024e-05,2]
[396546995,1765045530735,-287.3029353,8.025e-05,2]
[396546996,1765045537104,-33.42359404,8.025e-05,2]
[396546997,1765045537129,-143.03185124,8.025e-05,2]
[396546998,1765045538356,-320.26184291,8.025e-05,2]
[396546999,1765045541764,150.0,6.675e-05,2]
[396547000,1765045542123,150.0,6.993e-05,2]
[396547001,1765045542547,150.0,7.311e-05,2]
[396547002,1765045543250,150.0,7.629e-05,2]
[396547003,1765045546804,150.54,7.868e-05,2]
[396547006,1765045569043,150.54,7.868e-05,2]
[396547007,1765045576371,176.7,6.6e-05,2]
[396547008,1765045576645,176.7,6.8e-05,2]
[396547009,1765045576913,176.7,6.9e-05,2]
[396547010,1765045577188,176.7,7.1e-05,2]
[396547011,1765045577761,176.7,7.2e-05,2]
[396547012,1765045578024,176.7,7.4e-05,2]
[396547013,1765045579043,176.7,7.5e-05,2]
[396547014,1765045579118,176.7,7.7e-05,2]
[396547015,1765045579174,176.7,7.8e-05,2]
[396547016,1765045591584,150.54,7.868e-05,2]
[396547017,1765045595849,176.65,6.612e-05,2]
[396547018,1765045613933,150.0,6.66e-05,2]
[396547019,1765045614317,150.0,6.977e-05,2]
[396547020,1765045614731,150.0,7.294e-05,2]
[396547021,1765045615140,150.0,7.611e-05,2]
[396547022,1765045635629,150.38,6.6e-05,2]
[396547023,1765045635913,150.38,6.8e-05,2]
[396547024,1765045636292,150.38,6.9e-05,2]
[396547026,1765045636475,-176.7,7.92e-05,2]
[396547027,1765045636500,-159.72156539,7.925e-05,2]
[396547028,1765045636584,150.38,7.1e-05,2]
[396547029,1765045636865,150.38,7.3e-05,2]
[396547030,1765045637196,150.38,7.4e-05,2]
[396547031,1765045637571,150.38,7.6e-05,2]
[396547032,1765045637752,150.38,7.7e-05,2]
[396547033,1765045638033,150.38,7.9e-05,2]
[396547034,1765045641929,-180.03959258,7.925e-05,2]
[396547035,1765045643860,-300.0,7.925e-05,2]
[396547036,1765045648592,-233.54778565,7.925e-05,2]
[396547037,1765045650121,-191.40125381,7.925e-05,2]
[396547038,1765045652682,-262.06340631,7.925e-05,2]
[396547039,1765045656061,-253.87074836,7.925e-05,2]
[396547040,1765045657141,5228.02,7.846e-05,2]
[396547041,1765045657165,10000.01,7.846e-05,2]
[396547042,1765045657187,10000.01,7.846e-05,2]
[396547043,1765045657210,10000.01,7.846e-05,2]
[396547044,1765045657235,2356.87672146,7.846e-05,2]
[396547045,1765045659844,-300.0,7.925e-05,2]
[396547046,1765045663392,-157.24285756,7.925e-05,2]
[396547047,1765045665190,-194.61801414,7.925e-05,2]
[396547048,1765045669756,-152.72,7.925e-05,2]
[396547049,1765045672373,7643.13327854,7.846e-05,2]
[396547050,1765045673703,-305.38198586,7.846e-05,2]
[396547051,1765045683105,150.0,6.944e-05,2]
[396547052,1765045691510,-150.0,7.202e-05,2]
[396547053,1765045691534,-118.9381939,7.275e-05,2]
[396547054,1765045699321,194.93,6.6e-05,2]
[396547055,1765045699593,194.93,6.8e-05,2]
[396547056,1765045699971,194.93,6.9e-05,2]
[396547057,1765045709740,-194.93,7.1e-05,2]
[396547058,1765045709768,-21.25121639,7.2e-05,2]
[396547059,1765045710248,194.93,7.029e-05,2]
[396547060,1765045711902,-173.67878361,7.2e-05,2]
[396547061,1765045711928,-12.45581945,7.275e-05,2]
[396547062,1765045716052,-18.60598665,7.275e-05,2]
[396547063,1765045716074,-146.0036051,7.4e-05,2]
[396547064,1765045718123,-48.9263949,7.4e-05,2]
[396547065,1765045718146,-115.7895092,7.5e-05,2]
[396547066,1765045718224,194.87,6.612e-05,2]
[396547069,1765045742170,250.0,0.00013107,3]
[396547070,1765045749636,150.0,6.668e-05,2]
[396547071,1765045750083,150.0,6.985e-05,2]
[396547072,1765045758155,170.93,6.6e-05,2]
[396547073,1765045758368,-150.0,7.23e-05,2]
[396547074,1765045758393,-69.91355074,7.303e-05,2]
[396547075,1765045758440,170.93,6.8e-05,2]
[396547076,1765045758674,170.93,6.9e-05,2]
[396547077,1765045761535,-170.93,7.1e-05,2]
[396547078,1765045761556,-15.94864281,7.2e-05,2]
[396547079,1765045763985,162.0,5.8e-07,2]
[396547080,1765045765340,-154.98135719,7.2e-05,2]
[396547081,1765045765365,-80.08644926,7.303e-05,2]
[396547082,1765045765389,-25.11551257,7.4e-05,2]
[396547083,1765045766953,-145.81448743,7.4e-05,2]
[396547084,1765045766977,-44.62344762,7.5e-05,2]
[396547085,1765045817961,155.56,6.6e-05,2]
[396547086,1765045818198,155.56,6.8e-05,2]
[396547087,1765045818460,155.56,6.9e-05,2]
[396547088,1765045820715,150.0,6.662e-05,2]
[396547089,1765045821042,150.0,6.979e-05,2]
[396547090,1765045822211,-155.56,7.1e-05,2]
[396547091,1765045822233,-120.57942112,7.2e-05,2]
[396547092,1765045823781,-34.98057888,7.2e-05,2]
[396547093,1765045823805,-150.0,7.297e-05,2]
[396547094,1765045823827,-33.82396686,7.4e-05,2]
[396547095,1765045826330,-121.73603314,7.4e-05,2]
[396547096,1765045826358,-94.15542459,7.5e-05,2]
[396547119,1765045832910,-61.40457541,7.5e-05,2]
[396547120,1765045832920,-364.0,7.529e-05,2]
[396547121,1765045832930,-150.0,7.605e-05,2]
[396547122,1765045832939,-214.0,7.605e-05,2]
[396547123,1765045832948,-155.56,7.7e-05,2]
[396547124,1765045832958,-502.01805077,7.768e-05,2]
[396547125,1765045832967,-155.56,7.8e-05,2]
[396547126,1765045832976,-261.93373494,7.846e-05,2]
[396547127,1765045832987,-240.08431583,7.846e-05,2]
[396547128,1765045832998,-617.03859,7.899e-05,2]
[396547129,1765045833007,-300.0,7.923e-05,2]
[396547130,1765045833016,-595.0,7.923e-05,2]
[396547131,1765045833026,-70920.71808847,7.925e-05,2]
[396547132,1765045833041,-567.45196851,7.925e-05,2]
[396547133,1765045833052,-5675.93603266,7.925e-05,2]
[396547134,1765045833064,-875.89904586,7.925e-05,2]
[396547151,1765045837975,-500.0,7.923e-05,2]
[396547152,1765045837985,-291.62993769,7.923e-05,2]
[396547153,1765045837994,-128.37991741,7.923e-05,2]
[396547154,1765045838083,-371.62008259,7.923e-05,2]
[396547155,1765045838092,-253.96096748,7.923e-05,2]
[396547322,1765045840237,-246.03903252,7.923e-05,2]
[396547324,1765045840249,-500.0,7.923e-05,2]
[396547326,1765045840261,-459.96326125,7.923e-05,2]
[396547449,1765045841423,-3e-08,7.923e-05,2]
[396547512,1765045842004,-40.03673872,7.923e-05,2]
[396547514,1765045842015,-500.0,7.923e-05,2]
[396547516,1765045842026,-500.0,7.923e-05,2]
[396547518,1765045842036,-500.0,7.923e-05,2]
[396547520,1765045842047,-500.0,7.923e-05,2]
[396547522,1765045842057,-500.0,7.923e-05,2]
[396547524,1765045842067,-500.0,7.923e-05,2]
[396547526,1765045842077,-500.0,7.923e-05,2]
[396547528,1765045842086,-603.72800138,7.923e-05,2]
[396547530,1765045842095,-500.0,7.923e-05,2]
[396547531,1765045842105,-8741.91468907,7.925e-05,2]
[396547532,1765045842131,-5618.83711693,7.925e-05,2]
[396547533,1765045842172,-30592.90438003,7.925e-05,2]
[396547567,1765045842610,-671.77936835,7.925e-05,2]
[396548038,1765045847024,-293.04,7.844e-05,2]
[396548040,1765045847035,-631.63991727,7.923e-05,2]
[396548042,1765045847045,-500.0,7.923e-05,2]
[396548044,1765045847054,-447.54376915,7.923e-05,2]
[396548046,1765045847064,-500.0,7.923e-05,2]
[396548048,1765045847074,-500.0,7.923e-05,2]
[396548050,1765045847084,-500.0,7.923e-05,2]
[396548052,1765045847093,-206.30326652,7.923e-05,2]
[396548054,1765045847102,-500.0,7.923e-05,2]
[396548056,1765045847112,-500.0,7.923e-05,2]
[396548058,1765045847121,-300.0,7.923e-05,2]
[396548060,1765045847130,-15809.67054558,7.925e-05,2]
[396548062,1765045847142,-823.72127738,7.925e-05,2]
[396549416,1765045876005,151.84,6.6e-05,2]
[396549417,1765045876314,151.84,6.8e-05,2]
[396549418,1765045876595,151.84,7e-05,2]
[396549419,1765045889726,150.0,6.662e-05,2]
[396549420,1765045890114,150.0,6.979e-05,2]
[396549421,1765045892218,151.82,6.612e-05,2]
[396549422,1765045937163,151.84,6.6e-05,2]
[396549423,1765045937293,151.84,6.8e-05,2]
[396549424,1765045937435,151.84,7e-05,2]
[396549425,1765045959441,150.0,6.659e-05,2]
[396549426,1765045959838,150.0,6.976e-05,2]
[396549430,1765045994657,151.84,6.6e-05,2]
[396549431,1765045994960,151.84,6.8e-05,2]
[396549432,1765045995230,151.84,7e-05,2]
[396549433,1765046024568,150.0,6.66e-05,2]
[396549434,1765046025364,150.0,6.977e-05,2]
[396549435,1765046053659,151.84,6.6e-05,2]
[396549436,1765046053963,151.84,6.8e-05,2]
[396549437,1765046057475,-151.84,7.1e-05,2]
[396549438,1765046057497,-150.0,7.151e-05,2]
[396549439,1765046057524,-150.0,7.223e-05,2]
[396549440,1765046057548,-150.0,7.296e-05,2]
[396549441,1765046057570,-126.89563259,7.3e-05,2]
[396549442,1765046090110,150.0,6.666e-05,2]
[396549443,1765046091108,150.0,6.984e-05,2]
[396549444,1765046112786,152.7,6.6e-05,2]
[396549445,1765046113102,152.7,6.9e-05,2]
[396549446,1765046117797,-152.7,7.1e-05,2]
[396549447,1765046117821,-42.83436738,7.4e-05,2]
[396549448,1765046156441,150.0,6.666e-05,2]
[396549449,1765046176363,151.05,6.6e-05,2]
[396549450,1765046176617,151.05,6.9e-05,2]
[396549451,1765046178073,-151.05,7.2e-05,2]
[396549452,1765046178095,-83.54445117,7.474e-05,2]
[396549453,1765046181932,-242.53486861,7.474e-05,2]
[396549454,1765046232314,154.23,6.6e-05,2]
[396549455,1765046232585,154.23,6.9e-05,2]
[396549456,1765046237799,-154.23,7.2e-05,2]
[396549457,1765046237822,-0.47267897,7.474e-05,2]
[396549458,1765046237844,-89.40690629,7.5e-05,2]
[396549459,1765046292343,150.19,6.6e-05,2]
[396549460,1765046294176,150.19,6.9e-05,2]
[396549461,1765046297929,-150.19,7.3e-05,2]
[396549462,1765046297951,-13.41457739,7.474e-05,2]
[396549463,1765046300348,-173.44542261,7.474e-05,2]
[396549464,1765046351401,151.79,6.6e-05,2]
[396549465,1765046351713,151.79,6.9e-05,2]
[396549466,1765046357816,-151.79,7.227e-05,2]
[396549467,1765046357838,-87.85,7.3e-05,2]
[396549469,1765046410172,154.99,6.6e-05,2]
[396549470,1765046410540,154.99,7e-05,2]
[396549471,1765046410636,150.0,6.661e-05,2]
[396549472,1765046411100,-212.0,7.3e-05,2]
[396549473,1765046411124,-32.97,7.4e-05,2]
[396549474,1765046414910,-122.02,7.4e-05,2]
[396549475,1765046414932,-35.78546858,7.474e-05,2]
[396549476,1765046469724,154.99,6.6e-05,2]
[396549477,1765046474356,150.0,6.663e-05,2]
[396549478,1765046474751,150.0,6.98e-05,2]
[396549479,1765046475747,-154.99,7.1e-05,2]
[396549480,1765046475768,-68.86736925,7.474e-05,2]
[396549481,1765046479957,-35.03916092,7.474e-05,2]
[396549482,1765046479979,-116.93083908,7.487e-05,2]
[396549483,1765046493467,-209.62115967,7.412e-05,2]
[396549484,1765046493490,-27.66211221,7.487e-05,2]
[396549485,1765046524278,-181.95904746,7.338e-05,2]